[Event "European Rapid Championship 2021"]
[Site "Katowice"]
[Date "2021.12.18"]
[Round "5.30"]
[White "Helis, Tadeusz"]
[Black "Lach, Mateusz"]
[Result "1/2-1/2"]
[ECO "A04"]
[WhiteElo "2155"]
[BlackElo "1661"]
[Annotator "NA"]
[PlyCount "73"]
[EventDate "2021.12.18"]
[EventType "swiss"]
[EventCountry "POL"]
[SourceTitle "playchess.com"]
[Source "ChessBase"]
[SourceQuality "1"]
[TimeControl "900+10"]

1. Nf3 {[%emt 0:00:04]} e6 {[%emt 0:00:01]} 2. c4 {[%emt 0:00:02]} f5 {[%emt 0:
00:01]} 3. g3 {[%emt 0:00:02]} Nf6 {[%emt 0:00:02]} 4. Bg2 {[%emt 0:00:02]} c6
{[%emt 0:00:02]} 5. O-O {[%emt 0:00:07]} d5 {[%emt 0:00:03]} 6. d4 {[%emt 0:00:
02]} Bd6 {[%emt 0:00:09]} 7. b3 {[%emt 0:00:03]} O-O {[%emt 0:00:03]} 8. Ba3 {
[%emt 0:00:02]} Bxa3 {[%emt 0:00:05]} 9. Nxa3 {[%emt 0:00:02]} Nbd7 {[%emt 0:
00:18]} 10. e3 {[%emt 0:00:03]} a6 {[%emt 0:00:07]} 11. Qc2 {[%emt 0:00:17]} b5
{[%emt 0:00:18]} 12. cxd5 {[%emt 0:00:05]} cxd5 {[%emt 0:00:01]} 13. Rac1 {
[%emt 0:00:11]} Bb7 {[%emt 0:00:08]} 14. Qb2 {[%emt 0:01:55]} Qb6 {[%emt 0:00:
30]} 15. Rc2 {[%emt 0:00:08]} Rac8 {[%emt 0:00:01]} 16. Rfc1 {[%emt 0:00:02]}
Rxc2 {[%emt 0:00:03]} 17. Nxc2 {[%emt 0:00:04]} Rc8 {[%emt 0:00:24]} 18. Nce1 {
[%emt 0:00:02]} Rxc1 {[%emt 0:00:11]} 19. Qxc1 {[%emt 0:00:02]} Qc6 {[%emt 0:
00:03]} 20. Qxc6 {[%emt 0:00:02]} Bxc6 {[%emt 0:00:01]} 21. Nd3 {[%emt 0:00:03]
} Ne4 {[%emt 0:00:32]} 22. Nfe5 {[%emt 0:00:03]} Nxe5 {[%emt 0:01:09]} 23. Nxe5
{[%emt 0:00:03]} Be8 {[%emt 0:00:03]} 24. Bxe4 {[%emt 0:01:14]} fxe4 {[%emt 0:
00:01]} 25. b4 {[%emt 0:00:15]} h5 {[%emt 0:00:29]} 26. Kg2 {[%emt 0:00:29]} g5
{[%emt 0:00:22]} 27. f3 {[%emt 0:00:04]} Kg7 {[%emt 0:00:13]} 28. fxe4 {
[%emt 0:00:02]} dxe4 {[%emt 0:00:01]} 29. a3 {[%emt 0:00:17]} Kf6 {[%emt 0:00:
06]} 30. h3 {[%emt 0:00:09]} Kg7 {[%emt 0:00:08]} 31. Kf2 {[%emt 0:00:05]} Kf6
{[%emt 0:00:11]} 32. Ke2 {[%emt 0:00:03]} Ke7 {[%emt 0:00:40]} 33. Kd2 {
[%emt 0:00:15]} Kd6 {[%emt 0:00:01]} 34. Kc3 {[%emt 0:00:06]} Kd5 {[%emt 0:00:
05]} 35. Kb3 {[%emt 0:00:23]} Kd6 {[%emt 0:00:01]} 36. h4 {[%emt 0:01:44]} g4 {
[%emt 0:00:13]} 37. Kc3 1/2-1/2

[Event "European Rapid Championship 2021"]
[Site "Katowice"]
[Date "2021.12.18"]
[Round "5.30"]
[White "Dzhuguryan, Tygran"]
[Black "Baum, Jonasz"]
[Result "0-1"]
[ECO "E10"]
[WhiteElo "2047"]
[BlackElo "2343"]
[Annotator "NA"]
[PlyCount "80"]
[EventDate "2021.12.18"]
[EventType "swiss"]
[EventCountry "POL"]
[SourceTitle "playchess.com"]
[Source "ChessBase"]
[SourceQuality "1"]
[TimeControl "900+10"]

1. d4 {[%emt 0:00:03]} Nf6 2. c4 {[%emt 0:00:03]} e6 {[%emt 0:00:01]} 3. Nf3 {
[%emt 0:00:03]} d5 {[%emt 0:00:01]} 4. cxd5 {[%emt 0:00:06]} exd5 {[%emt 0:00:
01]} 5. Nc3 {[%emt 0:00:02]} c6 {[%emt 0:00:23]} 6. Bg5 {[%emt 0:00:09]} Be7 {
[%emt 0:00:18]} 7. Qc2 {[%emt 0:00:17]} h6 {[%emt 0:01:20]} 8. Bh4 {[%emt 0:00:
10]} Bg4 {[%emt 0:00:51]} 9. Ne5 {[%emt 0:01:04]} Be6 {[%emt 0:00:04]} 10. e3 {
[%emt 0:00:16]} Nbd7 {[%emt 0:00:02]} 11. Nxd7 Nxd7 {[%emt 0:01:07]} 12. Bxe7 {
[%emt 0:01:37]} Qxe7 {[%emt 0:00:01]} 13. h4 {[%emt 0:00:10]} a5 {[%emt 0:02:
40]} 14. Rd1 {[%emt 0:02:00]} O-O {[%emt 0:00:13]} 15. Be2 {[%emt 0:00:29]} b5
{[%emt 0:00:51]} 16. g3 {[%emt 0:00:16]} a4 {[%emt 0:02:18]} 17. Kf1 {[%emt 0:
00:37]} Nb6 {[%emt 0:01:49]} 18. Kg2 {[%emt 0:00:09]} Rfc8 {[%emt 0:00:56]} 19.
Bf3 {[%emt 0:01:41]} Qd7 {[%emt 0:00:30]} 20. Ne2 {[%emt 0:01:57]} Bf5 {
[%emt 0:00:05]} 21. Qc5 {[%emt 0:00:40]} Nc4 {[%emt 0:00:30]} 22. b3 {[%emt 0:
00:03]} Nb2 {[%emt 0:01:06]} 23. Ra1 {[%emt 0:00:49]} Nd3 {[%emt 0:00:40]} 24.
Qc3 {[%emt 0:00:05]} Be4 {[%emt 0:00:24]} 25. Nf4 {[%emt 0:02:33]} Nxf4+ {
[%emt 0:00:15]} 26. exf4 {[%emt 0:00:04]} Bxf3+ {[%emt 0:00:33]} 27. Kxf3 {
[%emt 0:00:03]} c5 {[%emt 0:00:42]} 28. Rhe1 {[%emt 0:01:30]} b4 {[%emt 0:01:
15]} 29. Qd2 {[%emt 0:00:02]} axb3 {[%emt 0:00:04]} 30. axb3 {[%emt 0:00:01]}
Ra3 {[%emt 0:00:02]} 31. Rxa3 {[%emt 0:00:14]} bxa3 {[%emt 0:00:01]} 32. Qa5 {
[%emt 0:00:29]} cxd4 {[%emt 0:00:18]} 33. Qxa3 {[%emt 0:00:08]} Qh3 {[%emt 0:
00:12]} 34. Qa4 {[%emt 0:01:36]} Rc3+ {[%emt 0:00:08]} 35. Ke2 {[%emt 0:00:02]}
d3+ {[%emt 0:00:32]} 36. Kd2 {[%emt 0:00:49]} Rc2+ {[%emt 0:00:02]} 37. Kxd3 {
[%emt 0:00:01]} Qf5+ {[%emt 0:00:01]} 38. Kd4 {[%emt 0:00:01]} Rd2+ {[%emt 0:
00:37]} 39. Kc3 {[%emt 0:00:19]} Qc2+ {[%emt 0:00:02]} 40. Kb4 {[%emt 0:00:01]}
Rd4+ {[%emt 0:00:01]} 0-1

[Event "European Rapid Championship 2021"]
[Site "Katowice"]
[Date "2021.12.18"]
[Round "6.1"]
[White "Donchenko, Alexander"]
[Black "Krasenkow, Michal"]
[Result "1-0"]
[ECO "A41"]
[WhiteElo "2535"]
[BlackElo "2576"]
[Annotator "ChessBase"]
[PlyCount "107"]
[EventDate "2021.12.18"]
[EventType "swiss"]
[EventCountry "POL"]
[SourceTitle "playchess.com"]
[Source "ChessBase"]
[SourceQuality "1"]
[TimeControl "900+10"]

1. d4 {[%emt 0:00:02]} d6 {[%emt 0:00:04]} 2. Nf3 {[%emt 0:00:05]} Nf6 {
[%emt 0:00:14]} 3. g3 {[%emt 0:00:07]} Bf5 {[%emt 0:00:10]} 4. Bg2 {[%emt 0:00:
05]} c6 {[%emt 0:00:02]} 5. c4 {[%emt 0:00:13]} Nbd7 {[%emt 0:00:04]} 6. O-O {
[%emt 0:00:23]} e5 {[%emt 0:00:01]} 7. b3 {[%emt 0:01:27]} Be7 {[%emt 0:00:15]}
8. Bb2 {[%emt 0:00:07]} e4 {[%emt 0:00:26]} 9. Nh4 {[%emt 0:00:32]} Be6 {
[%emt 0:00:13]} 10. d5 {[%emt 0:00:11]} cxd5 {[%emt 0:00:55]} 11. cxd5 {
[%emt 0:00:01]} Nxd5 {[%emt 0:00:31]} 12. Nf5 {[%emt 0:01:30]} Bxf5 {[%emt 0:
01:41]} 13. Qxd5 {[%emt 0:00:03]} Be6 {[%emt 0:02:31]} 14. Qxe4 {[%emt 0:00:51]
} d5 {[%emt 0:00:13]} 15. Qf4 {[%emt 0:01:59]} O-O {[%emt 0:00:17]} 16. Nc3 {
[%emt 0:00:02]} Bf6 {[%emt 0:01:40]} 17. Qd2 {[%emt 0:00:46]} Nb6 {[%emt 0:01:
23]} 18. Rfd1 {[%emt 0:00:24]} Re8 {[%emt 0:00:17]} 19. Nb5 {[%emt 0:00:51]}
Bxb2 {[%emt 0:00:15]} 20. Qxb2 {[%emt 0:00:02]} Qd7 {[%emt 0:00:18]} 21. Nd4 {
[%emt 0:00:35]} Bh3 {[%emt 0:00:02]} 22. Bh1 {[%emt 0:00:23]} h5 {[%emt 0:01:
28]} 23. Qd2 {[%emt 0:01:00]} h4 {[%emt 0:00:22]} 24. Qg5 {[%emt 0:00:14]} hxg3
{[%emt 0:00:08]} 25. hxg3 {[%emt 0:00:02]} f6 {[%emt 0:00:27]} 26. Qh4 {
[%emt 0:01:09]} Bg4 {[%emt 0:00:13]} 27. Bf3 {[%emt 0:00:29]} Bxf3 {[%emt 0:00:
05]} 28. exf3 {[%emt 0:00:02]} Re5 {[%emt 0:01:22]} 29. Kg2 {[%emt 0:00:21]}
Rae8 {[%emt 0:02:19]} 30. Rh1 {[%emt 0:00:16]} Kf7 {[%emt 0:00:30]} 31. f4 {
[%emt 0:01:21]} Re4 {[%emt 0:00:02]} 32. Rad1 {[%emt 0:01:05]} Ke7 {[%emt 0:00:
12]} 33. a4 {[%emt 0:00:43]} Kd8 {[%emt 0:00:13]} 34. Qh5 {[%emt 0:00:14]} Kc8
{[%emt 0:00:18]} 35. Nf5 {[%emt 0:01:00]} Re2 {[%emt 0:00:48]} 36. Rd3 {
[%emt 0:01:03]} Kb8 {[%emt 0:00:11]} 37. a5 {[%emt 0:00:09]} Na8 {[%emt 0:00:
21]} 38. Ne3 {[%emt 0:00:04]} Rb2 {[%emt 0:00:11]} 39. Nxd5 {[%emt 0:00:54]}
Ree2 {[%emt 0:00:15]} 40. Qh8+ {[%emt 0:00:11]} Qe8 {[%emt 0:00:09]} 41. Ne3 {
[%emt 0:00:42]} Rxf2+ {[%emt 0:00:16]} 42. Kg1 {[%emt 0:00:01]} Qxh8 {[%emt 0:
00:28]} 43. Rxh8+ {[%emt 0:00:01]} Kc7 {[%emt 0:00:00]} 44. Rxa8 {[%emt 0:00:
08]} Rfe2 {[%emt 0:00:05]} 45. Rg8 {[%emt 0:00:40]} Re1+ {[%emt 0:00:25]} 46.
Nf1 {[%emt 0:00:01]} Ree2 {[%emt 0:00:00]} 47. Rxg7+ {[%emt 0:00:01]} Kc6 {
[%emt 0:00:00]} 48. Rf3 {[%emt 0:00:18]} Ra2 {[%emt 0:00:07]} 49. b4 {[%emt 0:
00:13]} a6 {[%emt 0:00:08]} 50. Rf7 {[%emt 0:00:04]} Re6 {[%emt 0:00:06]} 51.
Rf2 {[%emt 0:00:05]} Ra1 {[%emt 0:00:12]} 52. Rc2+ {[%emt 0:00:01]} Kb5 {
[%emt 0:00:00]} 53. Rxb7+ {[%emt 0:00:02]} Ka4 {[%emt 0:00:01]} 54. Rb6 {
[%emt 0:00:05]} 1-0

[Event "European Rapid Championship 2021"]
[Site "Katowice"]
[Date "2021.12.18"]
[Round "6.1"]
[White "Savicevs, Arsenijs"]
[Black "Grabarczyk, Miroslaw"]
[Result "0-1"]
[ECO "A06"]
[WhiteElo "1881"]
[BlackElo "2373"]
[Annotator "ChessBase"]
[PlyCount "184"]
[EventDate "2021.12.18"]
[EventType "swiss"]
[EventCountry "POL"]
[SourceTitle "playchess.com"]
[Source "ChessBase"]
[SourceQuality "1"]
[TimeControl "900+10"]

1. Nf3 {[%emt 0:00:03]} d5 {[%emt 0:00:05]} 2. c4 {[%emt 0:00:03]} e6 {[%emt 0:
00:02]} 3. d4 {[%emt 0:00:02]} Nf6 {[%emt 0:00:09]} 4. cxd5 {[%emt 0:00:20]}
exd5 {[%emt 0:00:02]} 5. Bf4 {[%emt 0:00:08]} c6 {[%emt 0:00:12]} 6. e3 {
[%emt 0:00:13]} Bf5 {[%emt 0:00:04]} 7. Bd3 {[%emt 0:00:07]} Bxd3 {[%emt 0:00:
06]} 8. Qxd3 {[%emt 0:00:04]} Nbd7 {[%emt 0:00:06]} 9. O-O {[%emt 0:00:05]} Be7
{[%emt 0:00:05]} 10. h3 {[%emt 0:00:04]} O-O {[%emt 0:00:04]} 11. Qb3 {[%emt 0:
00:21]} Qb6 {[%emt 0:00:14]} 12. Nbd2 {[%emt 0:00:03]} Rfe8 {[%emt 0:00:10]}
13. Ne5 {[%emt 0:00:28]} Nxe5 {[%emt 0:00:23]} 14. Bxe5 {[%emt 0:00:15]} Nd7 {
[%emt 0:00:03]} 15. Bg3 {[%emt 0:00:19]} Nf6 {[%emt 0:00:20]} 16. Be5 {[%emt 0:
00:45]} Nd7 {[%emt 0:00:08]} 17. Bg3 {[%emt 0:00:03]} Bb4 {[%emt 0:00:02]} 18.
Rfd1 {[%emt 0:00:39]} Nf6 {[%emt 0:00:16]} 19. Be5 {[%emt 0:00:40]} Nd7 {
[%emt 0:00:07]} 20. Bg3 {[%emt 0:00:16]} Re6 {[%emt 0:00:03]} 21. a3 {[%emt 0:
00:37]} Bxd2 {[%emt 0:01:22]} 22. Qxb6 {[%emt 0:00:04]} axb6 {[%emt 0:00:02]}
23. Rxd2 {[%emt 0:00:03]} b5 {[%emt 0:00:04]} 24. b3 {[%emt 0:00:30]} Ra6 {
[%emt 0:00:20]} 25. Rda2 {[%emt 0:00:11]} Re8 {[%emt 0:00:02]} 26. Bf4 {
[%emt 0:05:07]} Rea8 {[%emt 0:00:11]} 27. g4 {[%emt 0:00:18]} f6 {[%emt 0:00:
02]} 28. f3 {[%emt 0:00:40]} Kf7 {[%emt 0:00:07]} 29. h4 {[%emt 0:00:25]} Nf8 {
[%emt 0:00:21]} 30. h5 {[%emt 0:00:09]} Ne6 {[%emt 0:00:03]} 31. Bd6 {[%emt 0:
00:33]} Ke8 {[%emt 0:00:07]} 32. Kf2 {[%emt 0:00:41]} Ng5 {[%emt 0:00:16]} 33.
Bf4 {[%emt 0:00:11]} Nf7 {[%emt 0:00:02]} 34. Ke2 {[%emt 0:01:28]} Kd7 {
[%emt 0:00:13]} 35. Kd3 {[%emt 0:00:02]} Nd8 {[%emt 0:01:39]} 36. Bg3 {[%emt 0:
02:24]} Ne6 {[%emt 0:00:14]} 37. Bh4 {[%emt 0:00:21]} Nc7 {[%emt 0:00:15]} 38.
Kc3 {[%emt 0:00:36]} b6 {[%emt 0:00:42]} 39. b4 {[%emt 0:00:34]} Ne8 {[%emt 0:
00:10]} 40. Bg3 {[%emt 0:00:04]} Nd6 {[%emt 0:00:02]} 41. Bxd6 {[%emt 0:00:02]}
Kxd6 {[%emt 0:00:02]} 42. Kb3 {[%emt 0:00:34]} Re8 {[%emt 0:00:10]} 43. Re1 {
[%emt 0:00:01]} Ra7 {[%emt 0:00:04]} 44. Rg2 {[%emt 0:00:34]} Rae7 {[%emt 0:00:
18]} 45. Rge2 {[%emt 0:00:06]} g6 {[%emt 0:00:08]} 46. e4 {[%emt 0:00:34]} gxh5
{[%emt 0:00:19]} 47. gxh5 {[%emt 0:00:01]} Rg8 {[%emt 0:00:02]} 48. e5+ {
[%emt 0:00:59]} fxe5 {[%emt 0:00:06]} 49. Rxe5 {[%emt 0:00:13]} Rxe5 {[%emt 0:
00:04]} 50. Rxe5 {[%emt 0:00:02]} Rf8 {[%emt 0:00:17]} 51. Kb2 {[%emt 0:00:27]}
Rxf3 {[%emt 0:00:19]} 52. Rg5 {[%emt 0:00:00]} Rh3 {[%emt 0:00:23]} 53. Re5 {
[%emt 0:00:05]} c5 {[%emt 0:02:03]} 54. Rf5 {[%emt 0:00:06]} Rh2+ {[%emt 0:04:
51]} 55. Kc3 {[%emt 0:00:10]} Rh3+ {[%emt 0:00:22]} 56. Kb2 {[%emt 0:00:00]}
cxd4 {[%emt 0:00:13]} 57. Rf6+ {[%emt 0:00:01]} Ke5 {[%emt 0:00:01]} 58. Rh6 {
[%emt 0:00:01]} Rh2+ {[%emt 0:00:38]} 59. Kc1 {[%emt 0:00:11]} d3 {[%emt 0:00:
23]} 60. Rxh7 {[%emt 0:00:02]} Kd4 {[%emt 0:00:02]} 61. h6 {[%emt 0:00:32]} Kc3
{[%emt 0:00:32]} 62. Rc7+ {[%emt 0:00:05]} Kb3 {[%emt 0:00:01]} 63. h7 {
[%emt 0:00:05]} Kxa3 {[%emt 0:00:14]} 64. Rc3+ {[%emt 0:00:02]} Kxb4 {[%emt 0:
00:08]} 65. Rxd3 {[%emt 0:00:16]} Kc4 {[%emt 0:00:07]} 66. Rg3 {[%emt 0:00:37]}
Rxh7 {[%emt 0:00:04]} 67. Rg6 {[%emt 0:00:01]} Rh1+ {[%emt 0:00:38]} 68. Kd2 {
[%emt 0:00:10]} Rh2+ {[%emt 0:00:03]} 69. Kc1 {[%emt 0:00:23]} Kc5 {[%emt 0:00:
20]} 70. Rg8 {[%emt 0:00:11]} b4 {[%emt 0:00:04]} 71. Rc8+ {[%emt 0:00:02]} Kb5
{[%emt 0:00:04]} 72. Rd8 {[%emt 0:00:02]} Kc4 {[%emt 0:00:03]} 73. Rc8+ {
[%emt 0:00:01]} Kb3 {[%emt 0:00:30]} 74. Rc6 {[%emt 0:00:02]} d4 {[%emt 0:00:
31]} 75. Rxb6 {[%emt 0:00:03]} Rc2+ {[%emt 0:00:14]} 76. Kd1 {[%emt 0:00:08]}
d3 {[%emt 0:00:12]} 77. Rd6 {[%emt 0:00:20]} Kc3 {[%emt 0:00:06]} 78. Rc6+ {
[%emt 0:00:03]} Kb2 {[%emt 0:00:05]} 79. Rd6 {[%emt 0:00:02]} Rc3 {[%emt 0:00:
13]} 80. Kd2 {[%emt 0:00:05]} b3 {[%emt 0:00:11]} 81. Ra6 {[%emt 0:00:46]} Rc8
{[%emt 0:00:19]} 82. Ra7 {[%emt 0:00:25]} Rc2+ {[%emt 0:00:36]} 83. Kd1 {
[%emt 0:00:17]} Rh2 {[%emt 0:00:27]} 84. Ra8 {[%emt 0:00:04]} Kc3 {[%emt 0:00:
21]} 85. Rc8+ {[%emt 0:00:02]} Kd4 {[%emt 0:00:03]} 86. Rd8+ {[%emt 0:00:14]}
Ke4 {[%emt 0:00:02]} 87. Re8+ {[%emt 0:00:05]} Kf5 {[%emt 0:00:04]} 88. Rf8+ {
[%emt 0:00:15]} Ke6 {[%emt 0:00:04]} 89. Kc1 {[%emt 0:00:20]} Rh1+ {[%emt 0:00:
13]} 90. Kb2 {[%emt 0:00:15]} d2 {[%emt 0:00:03]} 91. Re8+ {[%emt 0:00:02]} Kf7
{[%emt 0:00:02]} 92. Rd8 {[%emt 0:00:17]} d1=Q {[%emt 0:00:05]} 0-1

[Event "European Rapid Championship 2021"]
[Site "Katowice"]
[Date "2021.12.18"]
[Round "6.2"]
[White "Klekowski, Maciej"]
[Black "Mirzoev, Emil"]
[Result "1/2-1/2"]
[ECO "A13"]
[WhiteElo "2528"]
[BlackElo "2418"]
[Annotator "ChessBase"]
[PlyCount "25"]
[EventDate "2021.12.18"]
[EventType "swiss"]
[EventCountry "POL"]
[SourceTitle "playchess.com"]
[Source "ChessBase"]
[SourceQuality "1"]
[TimeControl "900+10"]

1. c4 {[%emt 0:00:02]} e6 {[%emt 0:00:07]} 2. Nf3 {[%emt 0:00:05]} Nf6 {
[%emt 0:00:06]} 3. g3 {[%emt 0:00:01]} d5 {[%emt 0:00:41]} 4. Bg2 {[%emt 0:00:
02]} dxc4 {[%emt 0:00:01]} 5. Qa4+ {[%emt 0:00:05]} Nbd7 {[%emt 0:00:01]} 6.
Qxc4 {[%emt 0:00:01]} a6 {[%emt 0:00:01]} 7. Qc2 {[%emt 0:00:07]} c5 {[%emt 0:
00:01]} 8. O-O {[%emt 0:00:13]} b5 {[%emt 0:00:02]} 9. a4 {[%emt 0:01:13]} Bb7
{[%emt 0:00:02]} 10. axb5 {[%emt 0:00:10]} axb5 {[%emt 0:00:01]} 11. Rxa8 {
[%emt 0:00:02]} Bxa8 {[%emt 0:00:27]} 12. Nc3 {[%emt 0:01:05]} Qb6 {[%emt 0:00:
06]} 13. d3 {[%emt 0:01:57]} 1/2-1/2

[Event "European Rapid Championship 2021"]
[Site "Katowice"]
[Date "2021.12.18"]
[Round "6.2"]
[White "Mis, Mieszko"]
[Black "Rudecki, Bartosz"]
[Result "1-0"]
[ECO "D30"]
[WhiteElo "2237"]
[BlackElo "1820"]
[Annotator "NA"]
[PlyCount "81"]
[EventDate "2021.12.18"]
[EventType "swiss"]
[EventCountry "POL"]
[SourceTitle "playchess.com"]
[Source "ChessBase"]
[SourceQuality "1"]
[TimeControl "900+10"]

1. d4 {[%emt 0:00:02]} d5 {[%emt 0:00:03]} 2. c4 {[%emt 0:00:04]} e6 {[%emt 0:
00:01]} 3. Nf3 {[%emt 0:00:04]} a6 {[%emt 0:00:10]} 4. Bg5 {[%emt 0:00:08]} Nf6
{[%emt 0:00:13]} 5. e3 {[%emt 0:00:40]} h6 {[%emt 0:01:33]} 6. Bh4 {[%emt 0:00:
12]} Be7 {[%emt 0:00:34]} 7. Nbd2 {[%emt 0:00:16]} Nbd7 {[%emt 0:00:54]} 8. Rc1
{[%emt 0:00:06]} O-O {[%emt 0:00:20]} 9. Qc2 {[%emt 0:00:13]} c6 {[%emt 0:02:
32]} 10. Bd3 {[%emt 0:00:08]} dxc4 {[%emt 0:01:09]} 11. Qxc4 {[%emt 0:02:52]}
c5 {[%emt 0:00:40]} 12. Qc2 {[%emt 0:04:13]} cxd4 {[%emt 0:00:29]} 13. Nxd4 {
[%emt 0:00:15]} Ne5 {[%emt 0:00:16]} 14. Be2 {[%emt 0:00:22]} Ng6 {[%emt 0:01:
05]} 15. Bg3 {[%emt 0:00:22]} Re8 {[%emt 0:02:49]} 16. O-O {[%emt 0:00:16]} e5
{[%emt 0:00:30]} 17. N4f3 {[%emt 0:00:34]} Bd6 {[%emt 0:01:31]} 18. Bd3 {
[%emt 0:02:00]} Nf8 {[%emt 0:02:23]} 19. Nc4 {[%emt 0:01:40]} e4 {[%emt 0:00:
15]} 20. Nxd6 {[%emt 0:01:27]} exf3 {[%emt 0:00:29]} 21. Nxe8 {[%emt 0:00:13]}
Qxe8 {[%emt 0:00:09]} 22. gxf3 {[%emt 0:00:08]} Ne6 {[%emt 0:00:13]} 23. Rfd1 {
[%emt 0:00:33]} Bd7 {[%emt 0:00:03]} 24. Bf1 {[%emt 0:00:21]} Ng5 {[%emt 0:00:
12]} 25. Bg2 {[%emt 0:00:09]} Bc6 {[%emt 0:00:21]} 26. Qf5 {[%emt 0:00:44]} Qe7
{[%emt 0:00:19]} 27. Bd6 {[%emt 0:00:06]} Qe8 {[%emt 0:00:09]} 28. h4 {[%emt 0:
00:11]} Bd7 {[%emt 0:00:06]} 29. Qe5 {[%emt 0:00:03]} Ne6 {[%emt 0:00:07]} 30.
f4 {[%emt 0:00:44]} Rd8 {[%emt 0:00:22]} 31. f5 {[%emt 0:00:08]} Nf8 {[%emt 0:
00:09]} 32. Qxe8 {[%emt 0:00:02]} Rxe8 {[%emt 0:00:12]} 33. Bxf8 {[%emt 0:00:
22]} Kxf8 {[%emt 0:00:02]} 34. Rc7 {[%emt 0:00:32]} Bxf5 {[%emt 0:00:03]} 35.
Rxb7 {[%emt 0:00:02]} g6 {[%emt 0:00:09]} 36. Ra7 {[%emt 0:00:04]} Rc8 {
[%emt 0:00:13]} 37. Ra8 {[%emt 0:00:05]} Kg7 {[%emt 0:00:07]} 38. Rxc8 {
[%emt 0:00:04]} Bxc8 {[%emt 0:00:01]} 39. Rd8 {[%emt 0:00:04]} Be6 {[%emt 0:00:
02]} 40. b3 {[%emt 0:00:06]} Ng4 {[%emt 0:00:07]} 41. Ra8 {[%emt 0:00:06]} 1-0

[Event "European Rapid Championship 2021"]
[Site "Katowice"]
[Date "2021.12.18"]
[Round "6.3"]
[White "Janik, Igor"]
[Black "Keinanen, Toivo"]
[Result "0-1"]
[ECO "D37"]
[WhiteElo "2462"]
[BlackElo "2341"]
[Annotator "ChessBase"]
[PlyCount "74"]
[EventDate "2021.12.18"]
[EventType "swiss"]
[EventCountry "POL"]
[SourceTitle "playchess.com"]
[Source "ChessBase"]
[SourceQuality "1"]
[TimeControl "900+10"]

1. d4 {[%emt 0:00:01]} d5 {[%emt 0:00:41]} 2. c4 {[%emt 0:00:02]} e6 {[%emt 0:
00:01]} 3. Nf3 {[%emt 0:00:03]} Nf6 {[%emt 0:00:01]} 4. Nc3 {[%emt 0:00:13]}
Be7 {[%emt 0:00:00]} 5. g3 {[%emt 0:00:57]} O-O {[%emt 0:01:21]} 6. Bg2 {
[%emt 0:00:01]} dxc4 {[%emt 0:00:36]} 7. Ne5 {[%emt 0:00:01]} Nc6 {[%emt 0:00:
01]} 8. Bxc6 {[%emt 0:00:01]} bxc6 {[%emt 0:00:00]} 9. Nxc6 Qe8 10. Nxe7+ {
[%emt 0:00:03]} Qxe7 {[%emt 0:00:01]} 11. Qa4 {[%emt 0:00:06]} c5 {[%emt 0:00:
01]} 12. dxc5 {[%emt 0:00:03]} Qxc5 {[%emt 0:00:00]} 13. Be3 Qc7 14. O-O-O {
[%emt 0:00:35]} e5 {[%emt 0:04:19]} 15. f3 {[%emt 0:01:38]} Be6 {[%emt 0:00:53]
} 16. Rd2 {[%emt 0:00:08]} Rfb8 {[%emt 0:01:41]} 17. Rhd1 {[%emt 0:01:33]} a5 {
[%emt 0:00:02]} 18. Qa3 {[%emt 0:01:40]} Rb4 {[%emt 0:01:37]} 19. Bc5 {[%emt 0:
00:19]} Rb7 {[%emt 0:02:37]} 20. Bd6 {[%emt 0:00:05]} Qb6 {[%emt 0:00:35]} 21.
Bxe5 {[%emt 0:00:35]} Nd7 {[%emt 0:00:01]} 22. Bd4 {[%emt 0:00:12]} Qc6 {
[%emt 0:00:29]} 23. Ne4 {[%emt 0:01:05]} h6 {[%emt 0:02:06]} 24. Qd6 {[%emt 0:
00:38]} Qa4 {[%emt 0:00:27]} 25. Nc3 {[%emt 0:01:27]} Qb4 {[%emt 0:00:04]} 26.
Qc6 {[%emt 0:01:08]} Rab8 {[%emt 0:00:21]} 27. a3 {[%emt 0:00:22]} Qb3 {
[%emt 0:00:32]} 28. Qa4 {[%emt 0:00:09]} Nc5 {[%emt 0:00:09]} 29. Bxc5 {
[%emt 0:01:09]} Qxc3+ {[%emt 0:00:01]} 30. Rc2 {[%emt 0:00:47]} Qe5 {[%emt 0:
00:45]} 31. Bd4 {[%emt 0:00:26]} Qg5+ {[%emt 0:00:23]} 32. f4 {[%emt 0:00:34]}
Qf5 {[%emt 0:00:12]} 33. Be5 {[%emt 0:00:22]} Rc8 {[%emt 0:00:16]} 34. Rcd2 {
[%emt 0:02:06]} c3 35. Rd8+ {[%emt 0:00:02]} Kh7 {[%emt 0:00:34]} 36. Bxc3 {
[%emt 0:00:06]} Bb3 {[%emt 0:00:11]} 37. Qd4 {[%emt 0:00:02]} Qc2# 0-1

[Event "European Rapid Championship 2021"]
[Site "Katowice"]
[Date "2021.12.18"]
[Round "6.3"]
[White "Janaszak, Dawid"]
[Black "Wnek, Filip"]
[Result "1-0"]
[ECO "B23"]
[WhiteElo "2328"]
[BlackElo "1873"]
[Annotator "NA"]
[PlyCount "53"]
[EventDate "2021.12.18"]
[EventType "swiss"]
[EventCountry "POL"]
[SourceTitle "playchess.com"]
[Source "ChessBase"]
[SourceQuality "1"]
[TimeControl "900+10"]

1. e4 {[%emt 0:00:01]} c5 {[%emt 0:00:01]} 2. Nc3 {[%emt 0:00:01]} d6 {[%emt 0:
00:01]} 3. f4 {[%emt 0:00:02]} Nf6 {[%emt 0:00:01]} 4. Nf3 {[%emt 0:00:05]} e6
{[%emt 0:00:01]} 5. d4 {[%emt 0:00:26]} cxd4 {[%emt 0:00:02]} 6. Nxd4 {[%emt 0:
00:02]} a6 {[%emt 0:00:02]} 7. Be3 {[%emt 0:00:14]} Be7 {[%emt 0:00:02]} 8. Qf3
{[%emt 0:00:30]} Qc7 {[%emt 0:00:04]} 9. O-O-O {[%emt 0:00:20]} Nc6 {[%emt 0:
01:06]} 10. Rg1 {[%emt 0:01:41]} Nxd4 {[%emt 0:00:37]} 11. Rxd4 {[%emt 0:00:02]
} Bd7 {[%emt 0:00:15]} 12. g4 {[%emt 0:00:19]} Bc6 {[%emt 0:00:02]} 13. g5 {
[%emt 0:00:26]} Nd7 {[%emt 0:00:01]} 14. h4 {[%emt 0:00:41]} O-O-O {[%emt 0:02:
19]} 15. Bh3 {[%emt 0:00:40]} Kb8 {[%emt 0:00:09]} 16. Kb1 {[%emt 0:00:52]} Nc5
17. f5 {[%emt 0:01:20]} e5 {[%emt 0:02:53]} 18. Rd5 {[%emt 0:01:56]} Na4 {
[%emt 0:01:01]} 19. Nxa4 {[%emt 0:01:27]} Bxd5 {[%emt 0:01:16]} 20. exd5 {
[%emt 0:00:02]} Qc4 {[%emt 0:00:40]} 21. Rg4 {[%emt 0:01:00]} Qb5 {[%emt 0:00:
03]} 22. Bf1 {[%emt 0:00:40]} Qa5 {[%emt 0:00:03]} 23. b3 {[%emt 0:01:19]} Rc8
{[%emt 0:00:42]} 24. Qd1 {[%emt 0:00:47]} Bd8 {[%emt 0:00:24]} 25. Qd2 {
[%emt 0:00:28]} Qc7 {[%emt 0:01:15]} 26. Nb6 {[%emt 0:00:13]} Be7 {[%emt 0:00:
24]} 27. Rc4 {[%emt 0:00:16]} 1-0